[Event "*** Qualifier 1: Titled Tuesday 3|2 Blitz"]
[Site "Chess.com"]
[Date "2017.04.04"]
[Round "9"]
[White "Rating-Schmating"]
[Black "biveklama"]
[Result "1/2-1/2"]
[WhiteElo "2235"]
[BlackElo "2189"]
[TimeControl "180+2"]
[EndTime "15:08:20 PDT"]
[Termination "Game drawn by stalemate"]

1. e4 {[%clk 0:03:01.9]} 1... c5 {[%clk 0:02:59.8]} 2. Nf3 {[%clk 0:03:01.5]}
2... d6 {[%clk 0:03:01.1]} 3. d4 {[%clk 0:03:02.4]} 3... cxd4 {[%clk 0:03:02]}
4. Nxd4 {[%clk 0:03:03]} 4... Nf6 {[%clk 0:03:02.7]} 5. Bd3 {[%clk 0:03:01.7]}
5... e5 {[%clk 0:03:00.7]} 6. Nb5 {[%clk 0:02:59.7]} 6... a6 {[%clk 0:02:59.7]}
7. N5a3 {[%clk 0:02:59.9]} 7... b5 {[%clk 0:03:00.9]} 8. c4 {[%clk 0:03:01]}
8... b4 {[%clk 0:02:58.9]} 9. Nc2 {[%clk 0:03:02.1]} 9... a5 {[%clk 0:02:59.4]}
10. Bg5 {[%clk 0:02:57.8]} 10... Be7 {[%clk 0:02:59.8]} 11. Ne3 {[%clk
0:02:57.2]} 11... O-O {[%clk 0:02:59.9]} 12. Nd2 {[%clk 0:02:54.7]} 12... Bb7
{[%clk 0:03:00.8]} 13. O-O {[%clk 0:02:54.5]} 13... Nc6 {[%clk 0:02:58.8]} 14.
Bxf6 {[%clk 0:02:50.5]} 14... Bxf6 {[%clk 0:02:59.4]} 15. Nf3 {[%clk 0:02:51]}
15... Re8 {[%clk 0:02:42.1]} 16. Nf5 {[%clk 0:02:49.7]} 16... g6 {[%clk
0:02:40.1]} 17. Nh6+ {[%clk 0:02:46.7]} 17... Kg7 {[%clk 0:02:40.4]} 18. Ng4
{[%clk 0:02:48]} 18... h5 {[%clk 0:02:26.9]} 19. Ne3 {[%clk 0:02:44.4]} 19...
Rc8 {[%clk 0:02:05.7]} 20. a3 {[%clk 0:02:41.3]} 20... Qb6 {[%clk 0:01:59.9]}
21. Nd5 {[%clk 0:02:38.2]} 21... Qd8 {[%clk 0:01:59.9]} 22. axb4 {[%clk
0:02:38.8]} 22... Nxb4 {[%clk 0:01:54.7]} 23. Nxb4 {[%clk 0:02:37.9]} 23... axb4
{[%clk 0:01:55.4]} 24. Qa4 {[%clk 0:02:36]} 24... Qb6 {[%clk 0:01:48.3]} 25. Qa7
{[%clk 0:02:30.2]} 25... Bd8 {[%clk 0:01:44.7]} 26. Qxb6 {[%clk 0:02:26.7]}
26... Bxb6 {[%clk 0:01:45.3]} 27. b3 {[%clk 0:02:27.8]} 27... Ra8 {[%clk
0:01:41.5]} 28. Rfc1 {[%clk 0:02:22.1]} 28... Ra3 {[%clk 0:01:32.3]} 29. Rab1
{[%clk 0:02:07.5]} 29... f5 {[%clk 0:01:30.9]} 30. Nd2 {[%clk 0:02:02.4]} 30...
Ra2 {[%clk 0:01:30.6]} 31. Rc2 {[%clk 0:02:01.5]} 31... Rxc2 {[%clk 0:01:28.4]}
32. Bxc2 {[%clk 0:02:03.4]} 32... Ra8 {[%clk 0:01:28.3]} 33. exf5 {[%clk
0:01:58.9]} 33... Ra2 {[%clk 0:01:29.1]} 34. Rc1 {[%clk 0:01:59.7]} 34... gxf5
{[%clk 0:01:29.2]} 35. Kf1 {[%clk 0:01:50.9]} 35... e4 {[%clk 0:01:13.6]} 36.
Ke2 {[%clk 0:01:46.1]} 36... Kf6 {[%clk 0:01:14.1]} 37. f4 {[%clk 0:01:42.7]}
37... Bd4 {[%clk 0:01:07.4]} 38. Nf1 {[%clk 0:01:28.6]} 38... d5 {[%clk
0:01:06.4]} 39. Ne3 {[%clk 0:01:21.6]} 39... Bb2 {[%clk 0:01:03.7]} 40. Rd1
{[%clk 0:01:03.2]} 40... d4 {[%clk 0:01:04.1]} 41. Nd5+ {[%clk 0:00:56.4]} 41...
Bxd5 {[%clk 0:01:03]} 42. cxd5 {[%clk 0:00:58.3]} 42... Bc3 {[%clk 0:00:59.8]}
43. d6 {[%clk 0:00:56.9]} 43... Rxc2+ {[%clk 0:00:56.6]} 44. Kf1 {[%clk
0:00:54.8]} 44... e3 {[%clk 0:00:54.9]} 45. Rb1 {[%clk 0:00:49.8]} 45... e2+
{[%clk 0:00:55]} 46. Kg1 {[%clk 0:00:47.9]} 46... e1=Q+ {[%clk 0:00:45.3]} 47.
Rxe1 {[%clk 0:00:48.7]} 47... Bxe1 {[%clk 0:00:45.8]} 48. d7 {[%clk 0:00:50.6]}
48... Ke7 {[%clk 0:00:45.7]} 49. Kf1 {[%clk 0:00:52.5]} 49... Bc3 {[%clk
0:00:43.9]} 50. g4 {[%clk 0:00:54.4]} 50... hxg4 {[%clk 0:00:34.3]} 51. h3
{[%clk 0:00:54.8]} 51... gxh3 {[%clk 0:00:32.9]} 52. d8=Q+ {[%clk 0:00:56.7]}
52... Kxd8 {[%clk 0:00:27.9]} 53. Kg1 {[%clk 0:00:58.6]} 53... d3 {[%clk
0:00:26.9]} 54. Kf1 {[%clk 0:00:59.1]} 54... Rg2 {[%clk 0:00:18.5]} 1/2-1/2

[Event "*** Qualifier 1: Titled Tuesday 3|2 Blitz"]
[Site "Chess.com"]
[Date "2017.04.04"]
[Round "9"]
[White "Marcus_Harvey"]
[Black "Schemato"]
[Result "1/2-1/2"]
[WhiteElo "2457"]
[BlackElo "2251"]
[TimeControl "180+2"]
[EndTime "15:08:38 PDT"]
[Termination "Game drawn - insufficient material"]

1. Nf3 {[%clk 0:03:02]} 1... c5 {[%clk 0:02:59.9]} 2. b3 {[%clk 0:03:00.2]} 2...
Nc6 {[%clk 0:02:59.3]} 3. Bb2 {[%clk 0:03:01.2]} 3... d6 {[%clk 0:02:59.8]} 4.
e3 {[%clk 0:03:02.5]} 4... e5 {[%clk 0:03:00.6]} 5. Bb5 {[%clk 0:03:03.5]} 5...
Ne7 {[%clk 0:03:00.9]} 6. O-O {[%clk 0:03:04.5]} 6... g6 {[%clk 0:02:58.2]} 7.
d4 {[%clk 0:03:05.4]} 7... exd4 {[%clk 0:02:57.5]} 8. exd4 {[%clk 0:03:06.6]}
8... Bg7 {[%clk 0:02:59.1]} 9. Qc1 {[%clk 0:03:02.5]} 9... O-O {[%clk
0:02:56.6]} 10. dxc5 {[%clk 0:02:58.6]} 10... dxc5 {[%clk 0:02:57.2]} 11. Bxg7
{[%clk 0:02:57.4]} 11... Kxg7 {[%clk 0:02:57.7]} 12. Qb2+ {[%clk 0:02:58.8]}
12... Nd4 {[%clk 0:02:54.2]} 13. Rd1 {[%clk 0:02:39.1]} 13... Nf5 {[%clk
0:02:54.7]} 14. Nxd4 {[%clk 0:02:24.8]} 14... Nxd4 {[%clk 0:02:46.8]} 15. Na3
{[%clk 0:02:10.1]} 15... Qf6 {[%clk 0:02:46.6]} 16. c3 {[%clk 0:02:04.8]} 16...
Nxb5 {[%clk 0:02:36.5]} 17. Nxb5 {[%clk 0:02:04.4]} 17... Be6 {[%clk 0:02:36.8]}
18. Nc7 {[%clk 0:01:59.7]} 18... Rad8 {[%clk 0:02:34.4]} 19. Nxe6+ {[%clk
0:02:00.9]} 19... Qxe6 {[%clk 0:02:32.3]} 20. c4+ {[%clk 0:02:01.3]} 20... Qf6
{[%clk 0:02:33.4]} 21. Qxf6+ {[%clk 0:02:00.8]} 21... Kxf6 {[%clk 0:02:34.2]}
22. Kf1 {[%clk 0:01:59.3]} 22... h5 {[%clk 0:02:29.2]} 23. Ke2 {[%clk
0:01:50.3]} 23... Rfe8+ {[%clk 0:02:29.3]} 24. Kf3 {[%clk 0:01:51.4]} 24... b6
{[%clk 0:02:29.2]} 25. a3 {[%clk 0:01:42.3]} 25... a5 {[%clk 0:02:22.8]} 26.
Rab1 {[%clk 0:01:41.4]} 26... g5 {[%clk 0:02:15.4]} 27. h3 {[%clk 0:01:39.6]}
27... Kf5 {[%clk 0:02:14.2]} 28. g4+ {[%clk 0:01:40.1]} 28... hxg4+ {[%clk
0:02:14.6]} 29. hxg4+ {[%clk 0:01:41]} 29... Kg6 {[%clk 0:02:11.4]} 30. Rd5
{[%clk 0:01:31.1]} 30... Rxd5 {[%clk 0:02:10.3]} 31. cxd5 {[%clk 0:01:33]} 31...
Rd8 {[%clk 0:02:08.6]} 32. Ke4 {[%clk 0:01:31.5]} 32... Kf6 {[%clk 0:02:05.4]}
33. Rh1 {[%clk 0:01:25.4]} 33... Re8+ {[%clk 0:02:02.8]} 34. Kd3 {[%clk
0:01:26.6]} 34... Re5 {[%clk 0:01:58.4]} 35. Rh6+ {[%clk 0:01:22.7]} 35... Ke7
{[%clk 0:01:58.5]} 36. Kc4 {[%clk 0:01:07.7]} 36... f6 {[%clk 0:01:51.3]} 37.
Rh8 {[%clk 0:00:56]} 37... Kd6 {[%clk 0:01:46.3]} 38. Rd8+ {[%clk 0:00:54.9]}
38... Kc7 {[%clk 0:01:46.4]} 39. Rf8 {[%clk 0:00:55.6]} 39... Re4+ {[%clk
0:01:43]} 40. Kb5 {[%clk 0:00:56.1]} 40... Rf4 {[%clk 0:01:39.6]} 41. Rf7+
{[%clk 0:00:32.3]} 41... Kd6 {[%clk 0:01:38]} 42. Kxb6 {[%clk 0:00:34]} 42...
Kxd5 {[%clk 0:01:29.4]} 43. Kxa5 {[%clk 0:00:34.9]} 43... Rxf2 {[%clk
0:01:28.8]} 44. b4 {[%clk 0:00:30.7]} 44... cxb4 {[%clk 0:01:27.2]} 45. axb4
{[%clk 0:00:32.3]} 45... Ra2+ {[%clk 0:01:18.9]} 46. Kb6 {[%clk 0:00:32.7]}
46... Ke6 {[%clk 0:01:19.7]} 47. Rc7 {[%clk 0:00:27.8]} 47... Rf2 {[%clk
0:00:58]} 48. Rc4 {[%clk 0:00:17.6]} 48... Rf4 {[%clk 0:00:58.6]} 49. Kc5 {[%clk
0:00:18.9]} 49... f5 {[%clk 0:00:50]} 50. gxf5+ {[%clk 0:00:12.7]} 50... Rxf5+
{[%clk 0:00:46.5]} 51. Kc6 {[%clk 0:00:13.6]} 51... Rf4 {[%clk 0:00:39.3]} 52.
Kc5 {[%clk 0:00:07.2]} 52... Rxc4+ {[%clk 0:00:31.1]} 53. Kxc4 {[%clk
0:00:08.5]} 53... g4 {[%clk 0:00:32.5]} 54. Kd4 {[%clk 0:00:09.4]} 54... Kd6
{[%clk 0:00:19.5]} 55. Ke4 {[%clk 0:00:10.1]} 55... Kc6 {[%clk 0:00:20.3]} 56.
Kf4 {[%clk 0:00:10.9]} 56... Kb5 {[%clk 0:00:21.5]} 57. Kg3 {[%clk 0:00:12.5]}
57... Kxb4 {[%clk 0:00:22.7]} 58. Kxg4 {[%clk 0:00:14.4]} 1/2-1/2

[Event "*** Qualifier 1: Titled Tuesday 3|2 Blitz"]
[Site "Chess.com"]
[Date "2017.04.04"]
[Round "9"]
[White "yian123"]
[Black "Sebastian"]
[Result "1-0"]
[WhiteElo "2420"]
[BlackElo "2601"]
[TimeControl "180+2"]
[EndTime "15:08:41 PDT"]
[Termination "yian123 won by resignation"]

1. e4 {[%clk 0:03:02]} 1... d6 {[%clk 0:03:00.4]} 2. d4 {[%clk 0:02:59.9]} 2...
Nf6 {[%clk 0:03:01.5]} 3. Nc3 {[%clk 0:02:58.4]} 3... g6 {[%clk 0:03:03.1]} 4.
Be3 {[%clk 0:02:56.1]} 4... a6 {[%clk 0:03:03.6]} 5. h4 {[%clk 0:02:48.6]} 5...
b5 {[%clk 0:03:01.5]} 6. e5 {[%clk 0:02:49.1]} 6... Ng4 {[%clk 0:02:55]} 7. Qf3
{[%clk 0:02:46.7]} 7... c6 {[%clk 0:02:47.1]} 8. exd6 {[%clk 0:02:40.2]} 8...
Qxd6 {[%clk 0:02:42]} 9. O-O-O {[%clk 0:02:33.1]} 9... Nxe3 {[%clk 0:02:37.6]}
10. Qxe3 {[%clk 0:02:31]} 10... h5 {[%clk 0:02:36]} 11. Kb1 {[%clk 0:02:30.6]}
11... Bh6 {[%clk 0:02:34.5]} 12. Qe1 {[%clk 0:02:27.2]} 12... O-O {[%clk
0:02:25.9]} 13. Nf3 {[%clk 0:02:27.3]} 13... Bg4 {[%clk 0:02:25.7]} 14. Be2
{[%clk 0:02:26.7]} 14... Nd7 {[%clk 0:02:25.1]} 15. Nd2 {[%clk 0:02:14.1]} 15...
Bf5 {[%clk 0:02:05.9]} 16. Nde4 {[%clk 0:02:04.7]} 16... Qe6 {[%clk 0:02:06.8]}
17. Ng3 {[%clk 0:02:05.3]} 17... Nf6 {[%clk 0:02:02.2]} 18. Bf3 {[%clk
0:02:00.7]} 18... Rac8 {[%clk 0:01:44.5]} 19. Nxf5 {[%clk 0:01:53]} 19... Qxf5
{[%clk 0:01:45.5]} 20. Qxe7 {[%clk 0:01:50.8]} 20... Rfd8 {[%clk 0:01:43.2]} 21.
Qe5 {[%clk 0:01:35.7]} 21... Qxe5 {[%clk 0:01:39.5]} 22. dxe5 {[%clk 0:01:33]}
22... Nd7 {[%clk 0:01:41.4]} 23. Rhe1 {[%clk 0:01:27.2]} 23... Nc5 {[%clk
0:01:40.5]} 24. Ne4 {[%clk 0:01:19.3]} 24... Nxe4 {[%clk 0:01:37.3]} 25. Bxe4
{[%clk 0:01:08.5]} 25... Rxd1+ {[%clk 0:01:37.7]} 26. Rxd1 {[%clk 0:01:08.1]}
26... Re8 {[%clk 0:01:39.6]} 27. Bxc6 {[%clk 0:01:06.5]} 27... Rxe5 {[%clk
0:01:40.7]} 28. Bb7 {[%clk 0:01:05.6]} 28... a5 {[%clk 0:01:40.7]} 29. a3 {[%clk
0:01:05.6]} 29... Re2 {[%clk 0:01:37.1]} 30. Rf1 {[%clk 0:00:59.7]} 30... Rd2
{[%clk 0:01:37.9]} 31. Bc6 {[%clk 0:00:51.3]} 31... b4 {[%clk 0:01:38.2]} 32.
axb4 {[%clk 0:00:51.9]} 32... axb4 {[%clk 0:01:39.3]} 33. g3 {[%clk 0:00:50.9]}
33... Bg7 {[%clk 0:01:39.6]} 34. Ba4 {[%clk 0:00:46.1]} 34... Bd4 {[%clk
0:01:39.9]} 35. f4 {[%clk 0:00:44.9]} 35... Bf2 {[%clk 0:01:39]} 36. Bb3 {[%clk
0:00:39.6]} 36... Kg7 {[%clk 0:01:38.2]} 37. Bc4 {[%clk 0:00:36.8]} 37... f5
{[%clk 0:01:31.3]} 38. Bd3 {[%clk 0:00:27.9]} 38... Kf6 {[%clk 0:01:26.1]} 39.
Ka2 {[%clk 0:00:28.7]} 39... Bxg3 {[%clk 0:01:21.8]} 40. Kb3 {[%clk 0:00:29.8]}
40... Bxh4 {[%clk 0:01:22.1]} 41. Kxb4 {[%clk 0:00:27.8]} 41... Bg3 {[%clk
0:01:23.3]} 42. Kc3 {[%clk 0:00:25.4]} 42... Rg2 {[%clk 0:01:23.4]} 43. b4
{[%clk 0:00:25]} 43... h4 {[%clk 0:01:24.6]} 44. b5 {[%clk 0:00:21.2]} 44... h3
{[%clk 0:01:24.9]} 45. b6 {[%clk 0:00:22.7]} 45... Bf2 {[%clk 0:00:34.9]} 46.
Rxf2 {[%clk 0:00:17.2]} 46... h2 {[%clk 0:00:35.6]} 47. b7 {[%clk 0:00:18.7]}
47... h1=Q {[%clk 0:00:36.1]} 48. b8=Q {[%clk 0:00:10.3]} 48... Qa1+ {[%clk
0:00:35.5]} 49. Kc4 {[%clk 0:00:11.4]} 49... Qa4+ {[%clk 0:00:36]} 50. Kc3
{[%clk 0:00:12.2]} 50... Qa3+ {[%clk 0:00:31.9]} 51. Kc4 {[%clk 0:00:11.8]}
51... Qa4+ {[%clk 0:00:30.7]} 52. Kc3 {[%clk 0:00:12.9]} 52... Qc6+ {[%clk
0:00:28.3]} 53. Kd4 {[%clk 0:00:10.2]} 53... Qd7+ {[%clk 0:00:22.2]} 54. Ke3
{[%clk 0:00:10.1]} 54... Qe6+ {[%clk 0:00:18.8]} 55. Qe5+ {[%clk 0:00:11.2]} 1-0

[Event "*** Qualifier 1: Titled Tuesday 3|2 Blitz"]
[Site "Chess.com"]
[Date "2017.04.04"]
[Round "9"]
[White "davidarenas1224"]
[Black "biostatistician"]
[Result "0-1"]
[WhiteElo "2331"]
[BlackElo "2461"]
[TimeControl "180+2"]
[EndTime "15:08:48 PDT"]
[Termination "biostatistician won on time"]

1. e4 {[%clk 0:03:02]} 1... e6 {[%clk 0:03:00.4]} 2. d4 {[%clk 0:03:02.7]} 2...
d5 {[%clk 0:03:02.3]} 3. Nc3 {[%clk 0:03:04.4]} 3... Nf6 {[%clk 0:03:02.5]} 4.
e5 {[%clk 0:03:04.3]} 4... Nfd7 {[%clk 0:03:02.4]} 5. f4 {[%clk 0:03:05.9]} 5...
c5 {[%clk 0:03:04.3]} 6. Nf3 {[%clk 0:03:06.7]} 6... Nc6 {[%clk 0:03:06.2]} 7.
Be3 {[%clk 0:03:07.6]} 7... a6 {[%clk 0:03:07.7]} 8. Qd2 {[%clk 0:03:03.2]} 8...
b5 {[%clk 0:03:08.1]} 9. dxc5 {[%clk 0:03:01.9]} 9... Bxc5 {[%clk 0:03:08.5]}
10. O-O-O {[%clk 0:03:02]} 10... Qb6 {[%clk 0:03:08]} 11. Bxc5 {[%clk 0:03:01]}
11... Nxc5 {[%clk 0:03:09.9]} 12. Bd3 {[%clk 0:02:59.2]} 12... b4 {[%clk
0:03:10.6]} 13. Ne2 {[%clk 0:02:58.2]} 13... a5 {[%clk 0:03:12]} 14. Ned4 {[%clk
0:02:33.8]} 14... Nxd4 {[%clk 0:03:12.7]} 15. Nxd4 {[%clk 0:02:32]} 15... O-O
{[%clk 0:03:14.3]} 16. Kb1 {[%clk 0:02:01]} 16... a4 {[%clk 0:03:14.2]} 17. f5
{[%clk 0:01:54.4]} 17... exf5 {[%clk 0:03:15.2]} 18. Bxf5 {[%clk 0:01:52.4]}
18... Bxf5 {[%clk 0:03:14.8]} 19. Nxf5 {[%clk 0:01:52.9]} 19... Ne4 {[%clk
0:03:15.9]} 20. Qd4 {[%clk 0:01:44.1]} 20... Qe6 {[%clk 0:02:38.4]} 21. Rhf1
{[%clk 0:01:30.7]} 21... Rfd8 {[%clk 0:02:27.7]} 22. Qxb4 {[%clk 0:01:14.6]}
22... Rab8 {[%clk 0:02:26.5]} 23. Qd4 {[%clk 0:01:04]} 23... a3 {[%clk
0:02:23.7]} 24. b3 {[%clk 0:01:04.4]} 24... Rbc8 {[%clk 0:02:20.2]} 25. c4
{[%clk 0:01:00.2]} 25... g6 {[%clk 0:01:56.1]} 26. Nh6+ {[%clk 0:00:43.5]} 26...
Kg7 {[%clk 0:01:53.3]} 27. Nxf7 {[%clk 0:00:44.3]} 27... Rf8 {[%clk 0:00:58.4]}
28. Nd6 {[%clk 0:00:43.6]} 28... Qg4 {[%clk 0:00:41.3]} 29. Nxe4 {[%clk
0:00:32.1]} 29... dxe4 {[%clk 0:00:36.3]} 30. Qd7+ {[%clk 0:00:28.6]} 30... Qxd7
{[%clk 0:00:35.2]} 31. Rxd7+ {[%clk 0:00:28.7]} 31... Kh6 {[%clk 0:00:36.5]} 32.
Rff7 {[%clk 0:00:17.4]} 32... e3 {[%clk 0:00:30.6]} 33. Kc2 {[%clk 0:00:16.8]}
33... Rxf7 {[%clk 0:00:30.2]} 34. Rxf7 {[%clk 0:00:17.4]} 34... Rd8 {[%clk
0:00:32.1]} 35. Rf3 {[%clk 0:00:16.1]} 35... Rd2+ {[%clk 0:00:31.1]} 36. Kc3
{[%clk 0:00:17.1]} 36... Rxa2 {[%clk 0:00:32.3]} 37. Rxe3 {[%clk 0:00:18.3]}
37... Rxg2 {[%clk 0:00:33.3]} 38. e6 {[%clk 0:00:15.3]} 38... a2 {[%clk
0:00:34.6]} 39. Re1 {[%clk 0:00:16.3]} 39... Re2 {[%clk 0:00:35.7]} 40. Ra1
{[%clk 0:00:16.6]} 40... Kg7 {[%clk 0:00:36.5]} 41. b4 {[%clk 0:00:16]} 41...
Kf6 {[%clk 0:00:36.7]} 42. Kb3 {[%clk 0:00:16.3]} 42... Rxh2 {[%clk 0:00:37.5]}
43. b5 {[%clk 0:00:12]} 43... Kxe6 {[%clk 0:00:37.2]} 44. Kb4 {[%clk 0:00:12.5]}
44... g5 {[%clk 0:00:35.7]} 45. b6 {[%clk 0:00:12.4]} 45... g4 {[%clk
0:00:35.8]} 46. Kc5 {[%clk 0:00:10.9]} 46... g3 {[%clk 0:00:34.9]} 47. Kc6
{[%clk 0:00:09.9]} 47... Rb2 {[%clk 0:00:34.8]} 48. b7 {[%clk 0:00:08.7]} 48...
g2 {[%clk 0:00:35.6]} 49. Rxa2 {[%clk 0:00:09.9]} 49... Rxa2 {[%clk 0:00:32.4]}
50. b8=Q {[%clk 0:00:10.7]} 50... g1=Q {[%clk 0:00:33.8]} 51. Qe8+ {[%clk
0:00:11.4]} 51... Kf5 {[%clk 0:00:35]} 52. Qh5+ {[%clk 0:00:11.8]} 52... Ke4
{[%clk 0:00:34.6]} 53. Qxh7+ {[%clk 0:00:12.3]} 53... Ke3 {[%clk 0:00:32.3]} 54.
Qh3+ {[%clk 0:00:12.8]} 54... Kd4 {[%clk 0:00:32]} 55. Qh4+ {[%clk 0:00:09.4]}
55... Kc3 {[%clk 0:00:31.8]} 56. c5 {[%clk 0:00:09.6]} 56... Qg6+ {[%clk
0:00:30.6]} 57. Kd5 {[%clk 0:00:08.4]} 57... Rd2+ {[%clk 0:00:30.7]} 58. Ke5
{[%clk 0:00:09.4]} 58... Re2+ {[%clk 0:00:30.6]} 59. Kf4 {[%clk 0:00:09]} 59...
Re4+ {[%clk 0:00:30.7]} 0-1

[Event "*** Qualifier 1: Titled Tuesday 3|2 Blitz"]
[Site "Chess.com"]
[Date "2017.04.04"]
[Round "9"]
[White "EvgenyT"]
[Black "justantan"]
[Result "1-0"]
[WhiteElo "2488"]
[BlackElo "2183"]
[TimeControl "180+2"]
[EndTime "15:08:59 PDT"]
[Termination "EvgenyT won by resignation"]

1. Nf3 {[%clk 0:02:52.4]} 1... d5 {[%clk 0:03:00.4]} 2. c4 {[%clk 0:02:53.1]}
2... d4 {[%clk 0:02:53.7]} 3. e3 {[%clk 0:02:52.7]} 3... Nc6 {[%clk 0:02:54.1]}
4. b4 {[%clk 0:02:48.2]} 4... dxe3 {[%clk 0:02:36.5]} 5. fxe3 {[%clk 0:02:49.3]}
5... Bg4 {[%clk 0:02:31.1]} 6. b5 {[%clk 0:02:17.5]} 6... Ne5 {[%clk 0:02:30.8]}
7. Be2 {[%clk 0:02:17.7]} 7... Bxf3 {[%clk 0:02:30.9]} 8. Bxf3 {[%clk
0:02:16.7]} 8... Nd3+ {[%clk 0:02:27]} 9. Ke2 {[%clk 0:02:17.5]} 9... Rb8 {[%clk
0:01:58]} 10. Qb3 {[%clk 0:01:48.5]} 10... Nc5 {[%clk 0:01:55.7]} 11. Qc3 {[%clk
0:01:41.1]} 11... Nf6 {[%clk 0:01:50.7]} 12. d4 {[%clk 0:01:41.7]} 12... Nce4
{[%clk 0:01:46]} 13. Qd3 {[%clk 0:01:37.8]} 13... Ng5 {[%clk 0:01:46.7]} 14. Nc3
{[%clk 0:01:38]} 14... e6 {[%clk 0:01:43]} 15. e4 {[%clk 0:01:29]} 15... Nxf3
{[%clk 0:01:39.4]} 16. gxf3 {[%clk 0:01:30.5]} 16... g6 {[%clk 0:01:37.9]} 17.
Be3 {[%clk 0:01:25.6]} 17... Bg7 {[%clk 0:01:17.9]} 18. e5 {[%clk 0:01:20.6]}
18... Nh5 {[%clk 0:01:11.4]} 19. Ne4 {[%clk 0:01:22]} 19... O-O {[%clk
0:01:08.8]} 20. Ng3 {[%clk 0:01:22.8]} 20... Qh4 {[%clk 0:01:07.6]} 21. Rag1
{[%clk 0:01:19.5]} 21... Rbd8 {[%clk 0:00:46.8]} 22. Qe4 {[%clk 0:01:19]} 22...
Qh3 {[%clk 0:00:31.6]} 23. Nxh5 {[%clk 0:01:11.1]} 23... Qxh5 {[%clk 0:00:32]}
24. Rg5 {[%clk 0:01:11.2]} 24... Qh3 {[%clk 0:00:30.6]} 25. Rg3 {[%clk
0:01:05.8]} 25... Qf5 {[%clk 0:00:27.7]} 26. Qxf5 {[%clk 0:01:04.6]} 26... exf5
{[%clk 0:00:29.6]} 27. f4 {[%clk 0:01:05.5]} 27... Rfe8 {[%clk 0:00:25.4]} 28.
d5 {[%clk 0:01:02.6]} 28... b6 {[%clk 0:00:17.4]} 29. a4 {[%clk 0:00:58.9]}
29... a5 {[%clk 0:00:15.3]} 30. Kf3 {[%clk 0:00:36.3]} 30... h5 {[%clk
0:00:15.7]} 31. Rg2 {[%clk 0:00:32.1]} 31... Bf8 {[%clk 0:00:16.4]} 32. Rc1
{[%clk 0:00:32.2]} 32... Rd7 {[%clk 0:00:15.6]} 33. Rd2 {[%clk 0:00:28.5]} 33...
Red8 {[%clk 0:00:16.7]} 34. Rcd1 {[%clk 0:00:26]} 34... Bb4 {[%clk 0:00:17.1]}
35. Rd3 {[%clk 0:00:27]} 35... Kg7 {[%clk 0:00:17.4]} 36. Bf2 {[%clk 0:00:27.2]}
36... Kg8 {[%clk 0:00:18.2]} 37. Ke2 {[%clk 0:00:25.3]} 37... Bf8 {[%clk
0:00:18.1]} 38. d6 {[%clk 0:00:19.7]} 38... cxd6 {[%clk 0:00:17]} 39. Bxb6
{[%clk 0:00:20.3]} 39... Re8 {[%clk 0:00:18.1]} 40. Kf3 {[%clk 0:00:16.6]} 40...
Rb7 {[%clk 0:00:18.3]} 41. Bd4 {[%clk 0:00:17.4]} 41... Rc7 {[%clk 0:00:13.8]}
42. exd6 {[%clk 0:00:15.5]} 42... Bxd6 {[%clk 0:00:13.5]} 43. Bb6 {[%clk
0:00:16]} 43... Rxc4 {[%clk 0:00:07.7]} 44. Rxd6 {[%clk 0:00:16.5]} 44... Rxa4
{[%clk 0:00:09.1]} 45. Rd8 {[%clk 0:00:16.9]} 45... Rxd8 {[%clk 0:00:09.6]} 46.
Rxd8+ {[%clk 0:00:17.2]} 46... Kh7 {[%clk 0:00:10.9]} 47. Bd4 {[%clk 0:00:18.3]}
47... g5 {[%clk 0:00:12.5]} 48. fxg5 {[%clk 0:00:18]} 48... Rb4 {[%clk
0:00:12.8]} 49. b6 {[%clk 0:00:19.1]} 49... a4 {[%clk 0:00:13.5]} 50. Ke3 {[%clk
0:00:20.2]} 50... a3 {[%clk 0:00:14.5]} 51. Ra8 {[%clk 0:00:20.5]} 51... f4+
{[%clk 0:00:15.9]} 52. Kd3 {[%clk 0:00:21]} 52... Rb3+ {[%clk 0:00:09.9]} 53.
Ke4 {[%clk 0:00:22.2]} 53... Rb4 {[%clk 0:00:10.8]} 54. Rxa3 {[%clk 0:00:22.4]}
54... Kg6 {[%clk 0:00:12.1]} 55. h4 {[%clk 0:00:22]} 55... f5+ {[%clk
0:00:09.3]} 56. gxf6 {[%clk 0:00:22.9]} 56... Kf7 {[%clk 0:00:10.5]} 57. Rd3
{[%clk 0:00:22.6]} 57... Kg6 {[%clk 0:00:09.2]} 58. Kxf4 {[%clk 0:00:23.8]}
58... Kh6 {[%clk 0:00:10.9]} 59. Ke4 {[%clk 0:00:24.9]} 59... Kg6 {[%clk
0:00:12.4]} 60. Rg3+ {[%clk 0:00:25.7]} 60... Kh6 {[%clk 0:00:13.3]} 61. Rf3
{[%clk 0:00:26.6]} 61... Kh7 {[%clk 0:00:13.3]} 62. f7 {[%clk 0:00:27.4]} 62...
Rb5 {[%clk 0:00:13.9]} 63. f8=Q {[%clk 0:00:27.5]} 1-0